[Event "*** Titled Tuesday Blitz"]
[Site "Chess.com"]
[Date "2021.03.30"]
[Round "7"]
[White "sergeikim"]
[Black "GregShahade"]
[Result "1/2-1/2"]
[WhiteElo "2515"]
[BlackElo "2694"]
[TimeControl "180+1"]
[EndTime "11:19:04 PDT"]
[Termination "Game drawn by repetition"]

1. d4 {[%clk 0:03:00.9]} 1... Nf6 {[%clk 0:02:59.9]} 2. c4 {[%clk 0:03:00.5]}
2... g6 {[%clk 0:03:00.3]} 3. Nc3 {[%clk 0:03:00.5]} 3... d5 {[%clk 0:03:00.7]}
4. cxd5 {[%clk 0:02:59.6]} 4... Nxd5 {[%clk 0:03:01.6]} 5. e4 {[%clk 0:02:59.6]}
5... Nxc3 {[%clk 0:03:01.8]} 6. bxc3 {[%clk 0:03:00.5]} 6... Bg7 {[%clk
0:03:02.3]} 7. Bc4 {[%clk 0:03:00.6]} 7... c5 {[%clk 0:03:01.8]} 8. Ne2 {[%clk
0:03:00.9]} 8... Nc6 {[%clk 0:03:02.2]} 9. Be3 {[%clk 0:02:59.8]} 9... O-O
{[%clk 0:03:02.1]} 10. O-O {[%clk 0:02:59.4]} 10... e6 {[%clk 0:03:01.4]} 11.
Qd2 {[%clk 0:02:58.5]} 11... b6 {[%clk 0:02:57.6]} 12. Rad1 {[%clk 0:02:54.8]}
12... Bb7 {[%clk 0:02:54.2]} 13. Bh6 {[%clk 0:02:53.3]} 13... Bxh6 {[%clk
0:02:48.1]} 14. Qxh6 {[%clk 0:02:50.7]} 14... cxd4 {[%clk 0:02:48.1]} 15. cxd4
{[%clk 0:02:48.6]} 15... Na5 {[%clk 0:02:46]} 16. Bd3 {[%clk 0:02:47.4]} 16...
Rc8 {[%clk 0:02:33.4]} 17. h4 {[%clk 0:02:45.2]} 17... Nc4 {[%clk 0:02:28.6]}
18. Rb1 {[%clk 0:02:01.9]} 18... Qe7 {[%clk 0:02:05.2]} 19. Rfc1 {[%clk
0:01:49.7]} 19... Nd6 {[%clk 0:01:53.5]} 20. Ng3 {[%clk 0:01:44.9]} 20... e5
{[%clk 0:01:35.5]} 21. d5 {[%clk 0:01:36]} 21... f6 {[%clk 0:01:21]} 22. Qe3
{[%clk 0:01:23.5]} 22... Qd7 {[%clk 0:01:14.8]} 23. Be2 {[%clk 0:01:20.3]} 23...
Rxc1+ {[%clk 0:01:02.7]} 24. Rxc1 {[%clk 0:01:18.3]} 24... Rc8 {[%clk
0:01:03.4]} 25. Kh2 {[%clk 0:01:13.4]} 25... Kg7 {[%clk 0:01:01.7]} 26. h5
{[%clk 0:01:10.6]} 26... Rc7 {[%clk 0:00:53.9]} 27. Rxc7 {[%clk 0:01:07.1]}
27... Qxc7 {[%clk 0:00:53.5]} 28. f4 {[%clk 0:00:56.9]} 28... Nf7 {[%clk
0:00:49]} 29. f5 {[%clk 0:00:45.1]} 29... g5 {[%clk 0:00:45.9]} 30. h6+ {[%clk
0:00:41.8]} 30... Nxh6 {[%clk 0:00:28.8]} 31. Nh5+ {[%clk 0:00:41.3]} 31... Kf7
{[%clk 0:00:28.5]} 32. Qa3 {[%clk 0:00:37]} 32... a5 {[%clk 0:00:18.9]} 33. d6
{[%clk 0:00:33.9]} 33... Qd8 {[%clk 0:00:07.8]} 34. Bc4+ {[%clk 0:00:31.9]}
34... Ke8 {[%clk 0:00:03.5]} 35. Qa4+ {[%clk 0:00:27.1]} 35... Kf8 {[%clk
0:00:02.7]} 36. Qa3 {[%clk 0:00:23.7]} 36... Nf7 {[%clk 0:00:01.8]} 37. Bxf7
{[%clk 0:00:20]} 37... Kxf7 {[%clk 0:00:02]} 38. Qb3+ {[%clk 0:00:20.3]} 38...
Kf8 {[%clk 0:00:02.3]} 39. Qe6 {[%clk 0:00:19.9]} 39... Bc8 {[%clk 0:00:02]} 40.
Qd5 {[%clk 0:00:19.6]} 40... Qd7 {[%clk 0:00:01.9]} 41. Nxf6 {[%clk 0:00:18.2]}
41... Qf7 {[%clk 0:00:02.1]} 42. Qxe5 {[%clk 0:00:17.3]} 42... Bd7 {[%clk
0:00:01.3]} 43. Nd5 {[%clk 0:00:15.5]} 43... Qh5+ {[%clk 0:00:01.3]} 44. Kg1
{[%clk 0:00:14.6]} 44... Qd1+ {[%clk 0:00:01.5]} 45. Kh2 {[%clk 0:00:14.6]}
45... Qh5+ {[%clk 0:00:01.6]} 46. Kg3 {[%clk 0:00:13.2]} 46... Qh4+ {[%clk
0:00:02.1]} 47. Kf3 {[%clk 0:00:13.2]} 47... g4+ {[%clk 0:00:02.3]} 48. Ke3
{[%clk 0:00:12.8]} 48... Qe1+ {[%clk 0:00:02.5]} 49. Kf4 {[%clk 0:00:12]} 49...
Qf2+ {[%clk 0:00:02.5]} 50. Kxg4 {[%clk 0:00:11.5]} 50... Qxg2+ {[%clk
0:00:03.1]} 51. Kh4 {[%clk 0:00:10.3]} 51... Qh1+ {[%clk 0:00:03.4]} 52. Kg5
{[%clk 0:00:09.9]} 52... Qg2+ {[%clk 0:00:03.9]} 53. Kh4 {[%clk 0:00:08.9]}
53... Qh1+ {[%clk 0:00:04.2]} 54. Kg5 {[%clk 0:00:08.8]} 54... Qg2+ {[%clk
0:00:04.6]} 55. Kh4 {[%clk 0:00:08.8]} 1/2-1/2

[Event "*** Titled Tuesday Blitz"]
[Site "Chess.com"]
[Date "2021.03.30"]
[Round "7"]
[White "Zkid"]
[Black "Rozum_Ivan"]
[Result "1-0"]
[WhiteElo "2846"]
[BlackElo "2736"]
[TimeControl "180+1"]
[EndTime "11:19:05 PDT"]
[Termination "Zkid won by resignation"]

1. e4 {[%clk 0:03:00.9]} 1... c6 {[%clk 0:02:59.2]} 2. d4 {[%clk 0:03:00.3]}
2... d5 {[%clk 0:03:00.1]} 3. exd5 {[%clk 0:03:00.4]} 3... cxd5 {[%clk 0:03:01]}
4. Bd3 {[%clk 0:03:00.8]} 4... Nf6 {[%clk 0:03:00.7]} 5. c3 {[%clk 0:03:00]}
5... g6 {[%clk 0:03:00.8]} 6. Nf3 {[%clk 0:02:58.7]} 6... Bf5 {[%clk 0:03:00.8]}
7. Be2 {[%clk 0:02:58.5]} 7... Bg7 {[%clk 0:03:00.5]} 8. O-O {[%clk 0:02:58.9]}
8... O-O {[%clk 0:03:00.7]} 9. Bf4 {[%clk 0:02:59.4]} 9... Nc6 {[%clk
0:03:00.5]} 10. Nbd2 {[%clk 0:02:59.2]} 10... Ne4 {[%clk 0:03:00.1]} 11. Nxe4
{[%clk 0:02:58.1]} 11... Bxe4 {[%clk 0:03:01]} 12. Nd2 {[%clk 0:02:57.7]} 12...
Bf5 {[%clk 0:03:00.9]} 13. Re1 {[%clk 0:02:55.7]} 13... e5 {[%clk 0:02:59.8]}
14. dxe5 {[%clk 0:02:55.9]} 14... Nxe5 {[%clk 0:03:00.7]} 15. Nf3 {[%clk
0:02:54.6]} 15... Nc6 {[%clk 0:02:57.7]} 16. Be3 {[%clk 0:02:50.5]} 16... Re8
{[%clk 0:02:53.6]} 17. Qd2 {[%clk 0:02:46.8]} 17... Qa5 {[%clk 0:02:48.2]} 18.
a3 {[%clk 0:02:19.5]} 18... Rad8 {[%clk 0:02:47.2]} 19. Rad1 {[%clk 0:02:17]}
19... a6 {[%clk 0:02:35.1]} 20. h3 {[%clk 0:02:09.2]} 20... Qc7 {[%clk
0:02:30.9]} 21. Bh6 {[%clk 0:02:00.3]} 21... Bh8 {[%clk 0:02:26]} 22. Bf4 {[%clk
0:01:57.8]} 22... Qd7 {[%clk 0:02:21.5]} 23. Bg5 {[%clk 0:01:54.5]} 23... f6
{[%clk 0:01:56.3]} 24. Be3 {[%clk 0:01:52.9]} 24... Be6 {[%clk 0:01:56.6]} 25.
Nd4 {[%clk 0:01:48.4]} 25... Bf7 {[%clk 0:01:56.9]} 26. Nxc6 {[%clk 0:01:44]}
26... Qxc6 {[%clk 0:01:56]} 27. Bd4 {[%clk 0:01:43.4]} 27... Bg7 {[%clk
0:01:52.7]} 28. Bd3 {[%clk 0:01:39.5]} 28... Rxe1+ {[%clk 0:01:52.4]} 29. Rxe1
{[%clk 0:01:40.4]} 29... Re8 {[%clk 0:01:52.9]} 30. Rxe8+ {[%clk 0:01:39.7]}
30... Qxe8 {[%clk 0:01:53.8]} 31. Qf4 {[%clk 0:01:38.8]} 31... Qd8 {[%clk
0:01:51.3]} 32. a4 {[%clk 0:01:34.4]} 32... Be6 {[%clk 0:01:50.6]} 33. b4 {[%clk
0:01:33.2]} 33... Kf7 {[%clk 0:01:50.6]} 34. a5 {[%clk 0:01:30.5]} 34... Qd7
{[%clk 0:01:49.5]} 35. h4 {[%clk 0:01:25.7]} 35... h5 {[%clk 0:01:44.4]} 36. Qg3
{[%clk 0:01:20.4]} 36... f5 {[%clk 0:01:09.2]} 37. Bxg7 {[%clk 0:01:19.9]} 37...
Kxg7 {[%clk 0:01:10.1]} 38. Qe5+ {[%clk 0:01:18.8]} 38... Kf7 {[%clk 0:01:08.7]}
39. Kh2 {[%clk 0:01:17.1]} 39... Qe7 {[%clk 0:01:04.9]} 40. g3 {[%clk
0:01:13.8]} 40... Qf6 {[%clk 0:01:03.5]} 41. Qc7+ {[%clk 0:01:12.2]} 41... Qe7
{[%clk 0:01:03.8]} 42. Qb8 {[%clk 0:01:09.2]} 42... d4 {[%clk 0:01:00.7]} 43.
cxd4 {[%clk 0:01:03.4]} 43... Qxb4 {[%clk 0:01:00.9]} 44. Qc7+ {[%clk
0:01:03.2]} 44... Qe7 {[%clk 0:00:46.9]} 45. Qe5 {[%clk 0:00:59.6]} 45... Qd7
{[%clk 0:00:46.6]} 46. Bf1 {[%clk 0:00:50.4]} 46... Bd5 {[%clk 0:00:41.8]} 47.
Qh8 {[%clk 0:00:47.1]} 47... Qd6 {[%clk 0:00:35.4]} 48. Bg2 {[%clk 0:00:35.8]}
48... Bxg2 {[%clk 0:00:33.7]} 49. Kxg2 {[%clk 0:00:36.7]} 49... Qd5+ {[%clk
0:00:33.7]} 50. Kh2 {[%clk 0:00:35.1]} 50... Qxa5 {[%clk 0:00:15.1]} 51. Qh7+
{[%clk 0:00:34.8]} 51... Kf6 {[%clk 0:00:15.3]} 52. Qxb7 {[%clk 0:00:35.2]}
52... Qb5 {[%clk 0:00:15.7]} 53. Qc8 {[%clk 0:00:26.2]} 53... a5 {[%clk
0:00:14.5]} 54. Qf8+ {[%clk 0:00:25.4]} 54... Ke6 {[%clk 0:00:14.2]} 55. Qg7
{[%clk 0:00:25.3]} 55... Kd5 {[%clk 0:00:12.3]} 56. Qxg6 {[%clk 0:00:23.9]}
56... Kxd4 {[%clk 0:00:12.7]} 57. Qxh5 {[%clk 0:00:22.9]} 57... a4 {[%clk
0:00:13.3]} 58. Qd1+ {[%clk 0:00:23.3]} 58... Kc3 {[%clk 0:00:13.3]} 59. Qc1+
{[%clk 0:00:22.9]} 59... Kd4 {[%clk 0:00:09.9]} 60. h5 {[%clk 0:00:22.5]} 60...
f4 {[%clk 0:00:07.8]} 61. Qxf4+ {[%clk 0:00:21.9]} 61... Kc3 {[%clk 0:00:08.4]}
62. Qc1+ {[%clk 0:00:22]} 62... Kb3 {[%clk 0:00:07.4]} 63. Qb1+ {[%clk
0:00:21.4]} 63... Kc4 {[%clk 0:00:07.7]} 64. Qxb5+ {[%clk 0:00:22.3]} 64... Kxb5
{[%clk 0:00:08.6]} 65. h6 {[%clk 0:00:23.2]} 65... a3 {[%clk 0:00:09.5]} 66. h7
{[%clk 0:00:24.1]} 66... a2 {[%clk 0:00:10.3]} 67. h8=Q {[%clk 0:00:25]} 1-0

[Event "*** Titled Tuesday Blitz"]
[Site "Chess.com"]
[Date "2021.03.30"]
[Round "7"]
[White "Jungle_Jaguar"]
[Black "sokidze"]
[Result "1-0"]
[WhiteElo "2615"]
[BlackElo "2771"]
[TimeControl "180+1"]
[EndTime "11:19:05 PDT"]
[Termination "Jungle_Jaguar won on time"]

1. Nf3 {[%clk 0:03:00.9]} 1... c5 {[%clk 0:03:00]} 2. b3 {[%clk 0:03:01]} 2...
Nc6 {[%clk 0:02:58.9]} 3. Bb2 {[%clk 0:03:01.5]} 3... d6 {[%clk 0:02:59]} 4. c4
{[%clk 0:03:01.2]} 4... e5 {[%clk 0:02:59.2]} 5. e3 {[%clk 0:03:01.4]} 5... g6
{[%clk 0:02:59.8]} 6. d4 {[%clk 0:03:00.9]} 6... exd4 {[%clk 0:02:47.9]} 7. exd4
{[%clk 0:03:00.9]} 7... Bg7 {[%clk 0:02:48.3]} 8. Be2 {[%clk 0:02:54.6]} 8...
Nge7 {[%clk 0:02:43.9]} 9. O-O {[%clk 0:02:54.5]} 9... O-O {[%clk 0:02:39.7]}
10. Na3 {[%clk 0:02:54.9]} 10... Bg4 {[%clk 0:02:34.5]} 11. h3 {[%clk
0:02:44.9]} 11... Bxf3 {[%clk 0:02:22.9]} 12. Bxf3 {[%clk 0:02:45.8]} 12... Nxd4
{[%clk 0:02:23.5]} 13. Bxd4 {[%clk 0:02:44.3]} 13... Bxd4 {[%clk 0:02:22.4]} 14.
Rb1 {[%clk 0:02:45]} 14... Nc6 {[%clk 0:02:07.1]} 15. Nb5 {[%clk 0:02:45.1]}
15... Be5 {[%clk 0:02:06.1]} 16. Qd3 {[%clk 0:02:27.1]} 16... a6 {[%clk
0:01:43.6]} 17. Bxc6 {[%clk 0:02:25.4]} 17... bxc6 {[%clk 0:01:42.3]} 18. Nc3
{[%clk 0:02:25.9]} 18... Qc7 {[%clk 0:01:33.7]} 19. Rbd1 {[%clk 0:02:23.9]}
19... Rad8 {[%clk 0:01:29.9]} 20. Ne4 {[%clk 0:02:15.5]} 20... Rfe8 {[%clk
0:01:21]} 21. Kh1 {[%clk 0:02:10.9]} 21... Bd4 {[%clk 0:01:15.4]} 22. Qf3 {[%clk
0:02:06.4]} 22... Qe7 {[%clk 0:01:08.2]} 23. Rfe1 {[%clk 0:02:01.6]} 23... f5
{[%clk 0:00:58.4]} 24. Ng3 {[%clk 0:01:43.7]} 24... Qd7 {[%clk 0:00:49.2]} 25.
Ne2 {[%clk 0:01:37.4]} 25... Be5 {[%clk 0:00:47.3]} 26. Nf4 {[%clk 0:01:35.1]}
26... Bf6 {[%clk 0:00:38.7]} 27. Rxe8+ {[%clk 0:01:22]} 27... Rxe8 {[%clk
0:00:36.5]} 28. Qd3 {[%clk 0:01:22.6]} 28... Be5 {[%clk 0:00:33.4]} 29. Ne2
{[%clk 0:01:22.8]} 29... Re6 {[%clk 0:00:29.8]} 30. Ng1 {[%clk 0:01:23.1]} 30...
Bd4 {[%clk 0:00:26.9]} 31. Rf1 {[%clk 0:01:13.6]} 31... Qe7 {[%clk 0:00:26.3]}
32. Nf3 {[%clk 0:01:13.8]} 32... Bf6 {[%clk 0:00:25.6]} 33. Rd1 {[%clk
0:01:06.7]} 33... Kg7 {[%clk 0:00:22.9]} 34. Rd2 {[%clk 0:01:03.7]} 34... Qf7
{[%clk 0:00:11.5]} 35. g3 {[%clk 0:01:02.1]} 35... Qe7 {[%clk 0:00:09.4]} 36.
Kg2 {[%clk 0:01:02.3]} 36... Be5 {[%clk 0:00:09.7]} 37. h4 {[%clk 0:01:00.5]}
37... Bf6 {[%clk 0:00:09.6]} 38. Ng1 {[%clk 0:00:58.2]} 38... Bd4 {[%clk
0:00:07.7]} 39. Nf3 {[%clk 0:00:55.8]} 39... Re4 {[%clk 0:00:08]} 40. Qc2 {[%clk
0:00:53.9]} 40... Qf6 {[%clk 0:00:06.3]} 41. Qd1 {[%clk 0:00:54.1]} 41... h6
{[%clk 0:00:05.6]} 42. Rd3 {[%clk 0:00:49.2]} 42... g5 {[%clk 0:00:05.7]} 43.
hxg5 {[%clk 0:00:48]} 43... hxg5 {[%clk 0:00:06.6]} 44. Qd2 {[%clk 0:00:48.8]}
44... g4 {[%clk 0:00:06.1]} 45. Nh4 {[%clk 0:00:49.3]} 45... f4 {[%clk
0:00:04.1]} 46. f3 {[%clk 0:00:44.7]} 46... Re3 {[%clk 0:00:02.2]} 47. fxg4
{[%clk 0:00:42.7]} 47... Rxd3 {[%clk 0:00:01.7]} 48. Qxd3 {[%clk 0:00:43]} 48...
fxg3 {[%clk 0:00:02.3]} 49. Nf5+ {[%clk 0:00:43.3]} 49... Kf7 {[%clk 0:00:02.9]}
50. Qxg3 {[%clk 0:00:43.2]} 50... Be5 {[%clk 0:00:03.2]} 51. Qh3 {[%clk
0:00:43.7]} 51... Qg5 {[%clk 0:00:03.2]} 52. Qh7+ {[%clk 0:00:43.6]} 52... Ke6
{[%clk 0:00:02.2]} 53. Kh3 {[%clk 0:00:43.6]} 53... Bf6 {[%clk 0:00:01.2]} 54.
Qc7 {[%clk 0:00:41.1]} 54... Qf4 {[%clk 0:00:01.4]} 55. Qc8+ {[%clk 0:00:39.6]}
55... Kf7 {[%clk 0:00:01.9]} 56. Qd7+ {[%clk 0:00:36.7]} 56... Kg8 {[%clk
0:00:02.5]} 57. Qe8+ {[%clk 0:00:34.4]} 57... Kh7 {[%clk 0:00:02.7]} 58. Qf7+
{[%clk 0:00:34]} 1-0

[Event "*** Titled Tuesday Blitz"]
[Site "Chess.com"]
[Date "2021.03.30"]
[Round "7"]
[White "MarcoRiehle"]
[Black "Fandorine"]
[Result "1-0"]
[WhiteElo "2717"]
[BlackElo "2871"]
[TimeControl "180+1"]
[EndTime "11:19:08 PDT"]
[Termination "MarcoRiehle won on time"]

1. e4 {[%clk 0:03:00.9]} 1... g6 {[%clk 0:02:56.8]} 2. d4 {[%clk 0:03:00.5]}
2... Bg7 {[%clk 0:02:57]} 3. c4 {[%clk 0:03:00.9]} 3... d6 {[%clk 0:02:57.3]} 4.
Nc3 {[%clk 0:03:01.1]} 4... Nf6 {[%clk 0:02:57.9]} 5. f3 {[%clk 0:03:01.1]} 5...
O-O {[%clk 0:02:58.5]} 6. Be3 {[%clk 0:03:00.8]} 6... a6 {[%clk 0:02:59.1]} 7.
Qd2 {[%clk 0:02:59.9]} 7... Nbd7 {[%clk 0:02:59]} 8. Nge2 {[%clk 0:02:59.8]}
8... b5 {[%clk 0:02:59.2]} 9. g4 {[%clk 0:02:57.5]} 9... bxc4 {[%clk 0:02:53.3]}
10. Ng3 {[%clk 0:02:54.1]} 10... c5 {[%clk 0:02:53.2]} 11. h4 {[%clk 0:02:47.4]}
11... cxd4 {[%clk 0:02:49]} 12. Bxd4 {[%clk 0:02:48.3]} 12... Ne5 {[%clk
0:02:40.4]} 13. Bxe5 {[%clk 0:02:43.8]} 13... dxe5 {[%clk 0:02:41.3]} 14. Qxd8
{[%clk 0:02:37.8]} 14... Rxd8 {[%clk 0:02:42.2]} 15. Bxc4 {[%clk 0:02:38]} 15...
e6 {[%clk 0:02:42]} 16. Rd1 {[%clk 0:02:32.3]} 16... Rd4 {[%clk 0:02:23.9]} 17.
Bb3 {[%clk 0:02:19.1]} 17... h6 {[%clk 0:02:23.4]} 18. Nge2 {[%clk 0:02:17.3]}
18... Rxd1+ {[%clk 0:02:22]} 19. Kxd1 {[%clk 0:02:17.1]} 19... Bb7 {[%clk
0:02:08.7]} 20. Kc2 {[%clk 0:02:15.4]} 20... Bf8 {[%clk 0:02:08.6]} 21. Rd1
{[%clk 0:02:04.7]} 21... Rc8 {[%clk 0:01:58.4]} 22. a3 {[%clk 0:01:59.8]} 22...
Bc5 {[%clk 0:01:47.8]} 23. Kb1 {[%clk 0:01:36.1]} 23... Bf2 {[%clk 0:01:41.6]}
24. Rh1 {[%clk 0:01:33.1]} 24... Kg7 {[%clk 0:01:41.6]} 25. Bc2 {[%clk
0:01:19.5]} 25... Ne8 {[%clk 0:01:29.1]} 26. h5 {[%clk 0:01:12.8]} 26... g5
{[%clk 0:01:12.8]} 27. Rd1 {[%clk 0:01:05.8]} 27... Bc5 {[%clk 0:01:03.4]} 28.
b4 {[%clk 0:00:59.1]} 28... Be3 {[%clk 0:00:57.3]} 29. Bb3 {[%clk 0:00:49.1]}
29... Nc7 {[%clk 0:00:30.9]} 30. a4 {[%clk 0:00:44.6]} 30... Bc6 {[%clk
0:00:29.3]} 31. Kb2 {[%clk 0:00:35.8]} 31... Kf8 {[%clk 0:00:29.4]} 32. Ka3
{[%clk 0:00:31.7]} 32... Ke7 {[%clk 0:00:29.5]} 33. Bc4 {[%clk 0:00:30.7]} 33...
Be8 {[%clk 0:00:24.3]} 34. Bd3 {[%clk 0:00:25.1]} 34... Bb6 {[%clk 0:00:21.9]}
35. Rc1 {[%clk 0:00:22.9]} 35... a5 {[%clk 0:00:18.7]} 36. b5 {[%clk 0:00:22.8]}
36... Be3 {[%clk 0:00:17.3]} 37. Rc2 {[%clk 0:00:22.5]} 37... Bb6 {[%clk
0:00:16.6]} 38. Nd1 {[%clk 0:00:20.5]} 38... Rd8 {[%clk 0:00:17.1]} 39. Nb2
{[%clk 0:00:19.9]} 39... Na8 {[%clk 0:00:09.3]} 40. Rc3 {[%clk 0:00:19.7]} 40...
Bf2 {[%clk 0:00:08.1]} 41. Nc4 {[%clk 0:00:19.3]} 41... Be1 {[%clk 0:00:07.9]}
42. Rb3 {[%clk 0:00:18.2]} 42... Bb4+ {[%clk 0:00:08.3]} 43. Kb2 {[%clk
0:00:18.3]} 43... Bd7 {[%clk 0:00:05.7]} 44. Nxe5 {[%clk 0:00:18.1]} 44... Be8
{[%clk 0:00:05]} 45. Kc2 {[%clk 0:00:17.7]} 45... Nb6 {[%clk 0:00:05]} 46. Nc4
{[%clk 0:00:17.2]} 46... Rc8 {[%clk 0:00:05.5]} 47. Rxb4 {[%clk 0:00:16.2]}
47... axb4 {[%clk 0:00:06.4]} 48. Kb3 {[%clk 0:00:16.8]} 48... Nxc4 {[%clk
0:00:06.9]} 49. Bxc4 {[%clk 0:00:17.7]} 49... Rd8 {[%clk 0:00:07.7]} 50. a5
{[%clk 0:00:16.9]} 50... Rd1 {[%clk 0:00:06.3]} 51. Kxb4 {[%clk 0:00:16.4]}
51... Kd6 {[%clk 0:00:04.5]} 52. Nc3 {[%clk 0:00:16.7]} 52... Rd2 {[%clk
0:00:02.8]} 53. a6 {[%clk 0:00:16.2]} 53... Rb2+ {[%clk 0:00:02.6]} 54. Ka3
{[%clk 0:00:16.5]} 54... Rc2 {[%clk 0:00:02.4]} 55. a7 {[%clk 0:00:15.2]} 55...
Rxc3+ {[%clk 0:00:02.3]} 56. Kb4 {[%clk 0:00:15.6]} 56... Rxf3 {[%clk
0:00:01.6]} 57. a8=Q {[%clk 0:00:15.5]} 1-0

[Event "*** Titled Tuesday Blitz"]
[Site "Chess.com"]
[Date "2021.03.30"]
[Round "7"]
[White "suneebaker"]
[Black "Das_Virus_2020"]
[Result "1-0"]
[WhiteElo "2165"]
[BlackElo "2463"]
[TimeControl "180+1"]
[EndTime "11:19:08 PDT"]
[Termination "suneebaker won on time"]

1. Nf3 {[%clk 0:03:00.9]} 1... Nf6 {[%clk 0:02:57.5]} 2. c4 {[%clk 0:03:00.1]}
2... c5 {[%clk 0:02:56.9]} 3. g3 {[%clk 0:02:59.8]} 3... Nc6 {[%clk 0:02:51.5]}
4. Bg2 {[%clk 0:02:59.5]} 4... d5 {[%clk 0:02:49.9]} 5. cxd5 {[%clk 0:02:58.7]}
5... Nxd5 {[%clk 0:02:50.8]} 6. O-O {[%clk 0:02:58.4]} 6... e6 {[%clk
0:02:50.4]} 7. Nc3 {[%clk 0:02:57.8]} 7... Nc7 {[%clk 0:02:34.6]} 8. d3 {[%clk
0:02:56.2]} 8... Be7 {[%clk 0:02:34.1]} 9. Be3 {[%clk 0:02:51.7]} 9... O-O
{[%clk 0:02:16.3]} 10. Rc1 {[%clk 0:02:50.5]} 10... Rb8 {[%clk 0:02:07.7]} 11.
Ne4 {[%clk 0:02:47.3]} 11... b6 {[%clk 0:02:06.2]} 12. a3 {[%clk 0:02:45.4]}
12... Bb7 {[%clk 0:02:05.1]} 13. Bf4 {[%clk 0:02:31.7]} 13... Rc8 {[%clk
0:01:58.5]} 14. Qa4 {[%clk 0:02:26]} 14... a5 {[%clk 0:01:48.6]} 15. Ne5 {[%clk
0:02:16.8]} 15... Nd5 {[%clk 0:01:44.8]} 16. Nxc6 {[%clk 0:02:00.3]} 16... Bxc6
{[%clk 0:01:44.4]} 17. Qc2 {[%clk 0:01:58.3]} 17... Nxf4 {[%clk 0:01:43]} 18.
gxf4 {[%clk 0:01:58.2]} 18... Bd5 {[%clk 0:01:19.2]} 19. Ng3 {[%clk 0:01:54.8]}
19... g6 {[%clk 0:01:11.7]} 20. e4 {[%clk 0:01:52.8]} 20... Bb7 {[%clk
0:01:07.9]} 21. f5 {[%clk 0:01:43.6]} 21... exf5 {[%clk 0:01:03.9]} 22. exf5
{[%clk 0:01:43.3]} 22... Bxg2 {[%clk 0:01:03.8]} 23. Kxg2 {[%clk 0:01:43.4]}
23... Qd5+ {[%clk 0:01:04.2]} 24. Kg1 {[%clk 0:01:37]} 24... Rcd8 {[%clk
0:01:03.5]} 25. fxg6 {[%clk 0:01:35.1]} 25... hxg6 {[%clk 0:01:01.1]} 26. Rfe1
{[%clk 0:01:30.2]} 26... Bf6 {[%clk 0:00:53.7]} 27. Rcd1 {[%clk 0:01:29.1]}
27... Kg7 {[%clk 0:00:48.4]} 28. Re4 {[%clk 0:01:28.6]} 28... Rh8 {[%clk
0:00:44.8]} 29. Qe2 {[%clk 0:01:22.6]} 29... Qg5 {[%clk 0:00:41.8]} 30. Qf3
{[%clk 0:01:20.9]} 30... Rd4 {[%clk 0:00:26.1]} 31. Rde1 {[%clk 0:01:16.9]}
31... Rhd8 {[%clk 0:00:22.8]} 32. Rxd4 {[%clk 0:01:11.1]} 32... Bxd4 {[%clk
0:00:19.3]} 33. Kg2 {[%clk 0:01:08.5]} 33... Qd5 {[%clk 0:00:18.4]} 34. Ne4
{[%clk 0:01:06.9]} 34... Bxb2 {[%clk 0:00:14.9]} 35. Rb1 {[%clk 0:01:04.6]}
35... Qd4 {[%clk 0:00:11.7]} 36. Ng5 {[%clk 0:00:57.3]} 36... Rd7 {[%clk
0:00:10.8]} 37. Rd1 {[%clk 0:00:42.4]} 37... b5 {[%clk 0:00:10.4]} 38. Ne4
{[%clk 0:00:33.3]} 38... b4 {[%clk 0:00:09.4]} 39. axb4 {[%clk 0:00:32.2]} 39...
cxb4 {[%clk 0:00:05.9]} 40. Rb1 {[%clk 0:00:26]} 40... a4 {[%clk 0:00:06.1]} 41.
Nc5 {[%clk 0:00:23]} 41... Qxc5 {[%clk 0:00:04.7]} 42. Rxb2 {[%clk 0:00:22.7]}
42... a3 {[%clk 0:00:05.1]} 43. Re2 {[%clk 0:00:19.4]} 43... Qc3 {[%clk
0:00:03.5]} 44. Re8 {[%clk 0:00:17]} 44... b3 {[%clk 0:00:03.1]} 45. Qa8 {[%clk
0:00:14.7]} 45... b2 {[%clk 0:00:03.4]} 46. Rg8+ {[%clk 0:00:13.9]} 46... Kh6
{[%clk 0:00:03.4]} 47. Qf8+ {[%clk 0:00:13.4]} 47... Kg5 {[%clk 0:00:03.6]} 48.
Rh8 {[%clk 0:00:08.9]} 48... Qc6+ {[%clk 0:00:02.6]} 49. f3 {[%clk 0:00:07.8]}
49... Rxd3 {[%clk 0:00:01.4]} 50. Qh6+ {[%clk 0:00:07.3]} 50... Kf6 {[%clk
0:00:01.7]} 51. Qh4+ {[%clk 0:00:05.5]} 51... Ke6 {[%clk 0:00:01.8]} 52. Qg4+
{[%clk 0:00:04.1]} 1-0